bitfinex/quotes_BTCUSD_20220211
["timestamp","ask_amount","ask_price","bid_price","bid_amount"]
[1644615416613,0.01357982,42552.0,42551.0,0.91848091]
[1644615416814,0.01357982,42552.0,42551.0,0.96538091]
[1644615420554,0.01357982,42552.0,42551.0,1.16538091]
[1644615420757,0.00040893,42554.0,42553.0,0.2907]
[1644615420961,0.36716055,42569.0,42563.0,0.35798294]
[1644615421155,0.36716055,42569.0,42558.0,0.0469]
[1644615421357,0.00163548,42560.0,42558.0,0.0469]
[1644615421811,0.21948568,42568.0,42558.0,0.0469]
[1644615422017,0.21948568,42568.0,42562.0,0.058763]
[1644615422216,0.21948568,42568.0,42562.0,0.117521]
[1644615422415,0.21948568,42568.0,42562.0,0.26618699]
[1644615422615,0.0728626,42567.0,42558.0,0.0469]
[1644615423015,0.0728626,42567.0,42557.0,0.00939]
[1644615423315,0.05877313,42564.0,42557.0,0.00939]
[1644615423514,0.0728626,42567.0,42558.0,0.0469]
[1644615423725,0.34340676,42561.0,42558.0,0.36853795]
[1644615423917,0.058776,42564.0,42558.0,0.32163795]
[1644615424115,0.1175519,42566.0,42558.0,0.32163795]
[1644615424514,0.20924195,42561.0,42557.0,0.00939]
[1644615424715,0.1175519,42566.0,42558.0,0.00015161]
[1644615424716,0.08946208,42560.0,42558.0,0.00015161]
[1644615425117,0.14824408,42560.0,42558.0,0.00015161]
[1644615425553,0.46703322,42560.0,42558.0,0.00015161]
[1644615425757,0.67719284,42560.0,42557.0,0.00939]
[1644615425954,0.55962784,42560.0,42557.0,0.00983699]
[1644615426156,0.00044694,42562.0,42557.0,0.00983699]
[1644615426459,0.05877685,42561.0,42557.0,0.00983699]
[1644615426656,0.00044694,42562.0,42557.0,0.00983699]
[1644615426855,0.230854,42568.0,42557.0,0.00939]
[1644615427055,0.22720105,42565.0,42557.0,0.00939]
[1644615427255,0.00029766,42562.0,42557.0,0.00939]
[1644615427657,0.05877893,42560.0,42557.0,0.00939]
[1644615427855,0.05877893,42560.0,42552.0,0.32931999]
[1644615428257,0.24976545,42571.0,42552.0,0.32931999]
[1644615428258,0.1133,42568.0,42553.0,0.058772]
[1644615428459,0.1133,42568.0,42552.0,0.32931999]
[1644615428460,0.00029766,42562.0,42554.0,0.28986972]
[1644615429213,0.0590725,42562.0,42554.0,0.058775]
[1644615429411,0.05877484,42562.0,42554.0,0.058775]
[1644615429612,0.05877484,42562.0,42556.0,0.00015436]
[1644615429811,0.05877484,42562.0,42556.0,0.33767902]
[1644615430412,0.05877484,42562.0,42558.0,0.29832201]
[1644615430612,0.10908359,42557.0,42556.0,0.70052516]
[1644615430814,0.10908359,42557.0,42551.0,0.058778]
[1644615431013,0.10908359,42557.0,42549.0,0.105375]
[1644615431213,0.10908359,42557.0,42549.0,0.10522201]
[1644615431813,0.10908359,42557.0,42552.0,0.34204678]
[1644615431814,0.31099358,42555.0,42552.0,0.34204678]
[1644615432014,0.31099358,42555.0,42551.0,0.00044975]
[1644615432959,0.31099358,42555.0,42550.0,0.05878]
[1644615433158,0.31099358,42555.0,42552.0,0.33896673]
[1644615433659,0.31099358,42555.0,42551.0,0.00042999]
[1644615433859,0.08951738,42553.0,42551.0,0.00042999]
[1644615434061,0.08951738,42553.0,42541.0,0.11756]
[1644615434062,0.14830938,42553.0,42539.0,0.220883]
[1644615434264,0.14830938,42553.0,42551.0,0.00042999]
[1644615434661,0.058792,42553.0,42551.0,0.00042999]
[1644615434862,0.22477259,42552.0,42551.0,0.00042999]
[1644615435061,0.28356459,42552.0,42551.0,0.00042999]
[1644615435261,0.34236402,42552.0,42544.0,0.32016862]
[1644615435463,0.3195748,42548.0,42544.0,0.32016862]
[1644615435862,0.22477259,42552.0,42544.0,0.32016862]
[1644615436064,0.30889595,42557.0,42551.0,0.27695407]
[1644615436364,0.30889595,42557.0,42544.0,0.10019465]
[1644615436365,0.36767838,42557.0,42546.0,0.15274383]
[1644615436610,0.30889595,42557.0,42547.0,0.10392335]
[1644615436815,0.38549791,42555.0,42548.0,0.31329228]
[1644615437412,0.38549791,42555.0,42546.0,0.058784]
[1644615438011,0.05878577,42554.0,42546.0,0.058784]
[1644615438510,0.05878577,42554.0,42550.0,0.34811356]
[1644615438912,0.43548291,42556.0,42550.0,0.34811356]
[1644615440115,0.19981236,42555.0,42550.0,0.34811356]
[1644615440356,0.23567055,42556.0,42551.0,0.00041273]
[1644615440357,0.05878751,42554.0,42551.0,0.00041273]
[1644615440756,0.43548291,42556.0,42551.0,0.00041273]
[1644615441360,0.19981236,42555.0,42543.0,0.058789]
[1644615441556,0.19981236,42555.0,42551.0,0.00041273]
[1644615441756,0.19981236,42553.0,42551.0,0.00041273]
[1644615441959,0.25860436,42553.0,42551.0,0.00041273]
[1644615442159,0.30855745,42553.0,42551.0,0.00041273]
[1644615442357,0.19985543,42552.0,42551.0,0.00041273]
[1644615442560,0.19985657,42552.0,42546.0,0.61897416]
[1644615442759,0.19985657,42554.0,42550.0,0.00041274]
[1644615443159,0.19985657,42553.0,42550.0,0.00041274]
[1644615443361,0.19985657,42551.0,42550.0,0.00041274]
[1644615443559,0.24976545,42553.0,42550.0,0.00041274]
[1644615443759,0.19987952,42551.0,42546.0,0.2990078]
[1644615444022,0.19987952,42551.0,42548.0,0.00041004]
[1644615444814,0.19987952,42551.0,42541.0,0.32337662]
[1644615444815,0.19987952,42550.0,42540.0,0.176363]
[1644615445015,0.19987952,42550.0,42542.0,0.10117305]
[1644615445217,0.19987952,42551.0,42542.0,0.10117305]
[1644615445418,0.19987952,42553.0,42546.0,0.09910271]
[1644615445617,0.19987952,42554.0,42548.0,0.25025928]
[1644615445818,0.19987952,42554.0,42548.0,0.60151172]
[1644615446019,0.24976545,42556.0,42548.0,0.60151172]
[1644615446020,0.19987952,42552.0,42548.0,0.60151172]
[1644615446218,0.19987952,42552.0,42548.0,0.35125244]
[1644615447221,0.35850168,42556.0,42548.0,0.35125244]
[1644615447222,0.19987952,42551.0,42548.0,0.35125244]
[1644615447418,0.19987952,42552.0,42548.0,0.30342638]
[1644615448660,0.19987952,42552.0,42547.0,0.1556943]
[1644615449062,0.19987952,42552.0,42546.0,0.00044838]
[1644615449260,0.19987952,42551.0,42546.0,0.09679663]
[1644615449459,0.19987952,42551.0,42546.0,0.00044838]
[1644615449660,0.19987952,42551.0,42548.0,0.05]
[1644615449863,0.19487952,42552.0,42548.0,0.05]
[1644615450466,0.29971853,42556.0,42548.0,0.05]
[1644615450467,0.24976545,42553.0,42548.0,0.05]
[1644615450664,0.24976545,42551.0,42548.0,0.05]
[1644615451518,0.24976545,42552.0,42548.0,0.05]
[1644615452110,0.30855433,42552.0,42548.0,0.05]
[1644615452412,0.24976545,42552.0,42548.0,0.05]
[1644615452610,0.24976545,42554.0,42548.0,0.05]
[1644615452810,0.24976545,42552.0,42548.0,0.05]
[1644615453813,0.39309521,42550.0,42548.0,0.05]
[1644615455758,0.63266223,42550.0,42548.0,0.05]
[1644615455959,0.88242768,42550.0,42548.0,0.05]
[1644615457259,0.63266223,42550.0,42548.0,0.05]
[1644615458559,0.39309521,42550.0,42548.0,0.05]
[1644615460007,0.5928838,42550.0,42548.0,0.05]
[1644615461007,0.19978859,42549.0,42548.0,0.05]
[1644615461208,0.64286066,42550.0,42548.0,0.05]
[1644615461409,0.19981013,42549.0,42548.0,0.05]
[1644615461807,0.64286066,42550.0,42548.0,0.05]
[1644615462212,0.19981145,42549.0,42548.0,0.05]
[1644615465462,0.70165133,42550.0,42548.0,0.05]
[1644615466361,0.00190382,42547.0,42546.0,0.00044837]
[1644615466611,0.00190382,42547.0,42542.0,0.10393924]
[1644615466809,0.00190382,42547.0,42546.0,0.00044838]
[1644615467410,0.00190382,42547.0,42542.0,0.10108496]
[1644615467609,0.1998123,42546.0,42542.0,0.42063644]
[1644615467813,0.1998123,42546.0,42542.0,0.42598778]
[1644615468610,0.20171612,42547.0,42542.0,0.3260932]
[1644615469010,0.20171612,42547.0,42542.0,0.42535113]
[1644615469213,0.20171612,42547.0,42542.0,0.48414213]
[1644615470256,0.20171612,42547.0,42542.0,0.16459065]
[1644615470857,0.20171612,42547.0,42542.0,0.10579965]
[1644615471259,0.1998123,42546.0,42542.0,0.00654172]
[1644615471460,0.1948123,42546.0,42542.0,0.0069901]
[1644615472057,0.1948123,42546.0,42542.0,0.10745836]
[1644615472258,0.1948123,42546.0,42542.0,0.0069901]
[1644615472459,0.1948123,42546.0,42542.0,0.10236684]
[1644615472659,0.1948123,42546.0,42542.0,0.15281522]
[1644615472861,0.1948123,42546.0,42542.0,0.10281522]
[1644615473460,0.19539986,42546.0,42542.0,0.10281522]
[1644615473660,0.19539986,42546.0,42542.0,0.10236684]
[1644615473860,0.19539986,42546.0,42542.0,0.10281522]
[1644615474713,0.19539986,42546.0,42537.0,0.0469]
[1644615475114,0.00058756,42546.0,42542.0,0.00044838]
[1644615475316,0.2,42544.0,42542.0,0.00044838]
[1644615475515,0.24976545,42545.0,42542.0,0.00044838]
[1644615475718,0.30030609,42546.0,42542.0,0.00044838]
[1644615475719,0.24976545,42543.0,42542.0,0.00044838]
[1644615475915,0.5358233,42543.0,42542.0,0.00044838]
[1644615476118,0.5358233,42543.0,42536.0,0.009396]
[1644615476315,0.5358233,42543.0,42536.0,0.004396]
[1644615476316,0.0588006,42542.0,42536.0,0.004396]
[1644615476517,0.24976545,42544.0,42536.0,0.063194]
[1644615476718,0.25034709,42545.0,42536.0,0.063194]
[1644615476917,0.25034709,42545.0,42536.0,0.004396]
[1644615477318,0.55778709,42543.0,42536.0,0.004396]
[1644615477771,0.24976545,42544.0,42538.0,0.058797]
[1644615478171,0.00058164,42545.0,42538.0,0.16159486]
[1644615478873,0.32091156,42545.0,42539.0,0.058793]
[1644615479073,0.00058164,42545.0,42539.0,0.117587]
[1644615479677,0.00058164,42545.0,42540.0,0.34171675]
[1644615479974,0.25034709,42545.0,42540.0,0.34216324]
[1644615480175,0.00058164,42545.0,42540.0,0.34216324]
[1644615480379,0.24976545,42544.0,42540.0,0.34216324]
[1644615480979,0.25034709,42545.0,42540.0,0.34171675]
[1644615481176,0.00058164,42545.0,42540.0,0.34216324]
[1644615481637,0.19967249,42544.0,42540.0,0.34216324]
[1644615481824,0.0005817,42542.0,42540.0,0.34216324]
[1644615482126,0.0005817,42542.0,42539.0,0.15741698]
[1644615482324,0.20025419,42542.0,42539.0,0.0004465]
[1644615482523,0.20025419,42542.0,42539.0,0.09303764]
[1644615482724,0.20025419,42542.0,42539.0,0.0004465]
[1644615483527,0.20025419,42542.0,42538.0,0.09418504]
[1644615483727,0.20025419,42542.0,42538.0,0.09463154]
[1644615484225,0.20025419,42542.0,42539.0,0.05]
[1644615484629,0.0005817,42542.0,42539.0,0.05]
[1644615485257,0.0005817,42542.0,42539.0,0.14751193]
[1644615485460,0.0005817,42542.0,42539.0,0.20630593]
[1644615486461,0.19967249,42544.0,42539.0,0.108794]
[1644615486661,0.20058167,42545.0,42539.0,0.20603876]
[1644615486861,0.20058167,42545.0,42542.0,0.37317533]
[1644615487260,0.20058167,42545.0,42542.0,0.63230459]
[1644615487462,0.00058167,42545.0,42542.0,0.63230459]
[1644615487666,0.25166927,42547.0,42543.0,0.09850488]
[1644615487667,0.00190382,42547.0,42543.0,0.09850488]
[1644615487864,0.24206759,42551.0,42544.0,1.34396698]
[1644615488064,0.0135,42546.0,42544.0,1.24138]
[1644615488462,0.0135,42546.0,42544.0,1.19138]
[1644615488665,0.0135,42546.0,42545.0,0.11754768]
[1644615488863,0.0135,42546.0,42545.0,0.28199068]
[1644615489512,0.10908359,42557.0,42556.0,0.28726361]
[1644615489910,0.03608222,42555.0,42550.0,0.117543]
[1644615490112,0.03608222,42555.0,42549.0,0.0469]
[1644615490511,0.32857698,42552.0,42549.0,0.0469]
[1644615490911,0.03608222,42555.0,42549.0,0.0469]
[1644615491111,0.00029689,42554.0,42549.0,0.0469]
[1644615491710,0.00029689,42554.0,42549.0,0.105679]
[1644615491909,0.03608222,42555.0,42549.0,0.155679]
[1644615492110,0.03608222,42555.0,42550.0,0.32790385]
[1644615492309,0.03608222,42555.0,42549.0,0.05877843]
[1644615492310,0.00044642,42554.0,42549.0,0.05877843]
[1644615492765,0.00044642,42554.0,42550.0,0.058778]
[1644615493167,0.03608222,42555.0,42550.0,0.058778]
[1644615493368,0.00044641,42554.0,42550.0,0.058778]
[1644615493566,0.00044641,42554.0,42551.0,0.05877619]
[1644615493767,0.00044641,42554.0,42551.0,0.11755319]
[1644615494266,0.03608222,42555.0,42552.0,0.30324639]
[1644615494769,0.03652863,42555.0,42552.0,0.36202139]
[1644615495168,0.03652863,42555.0,42553.0,0.27905012]
[1644615495369,0.03652863,42555.0,42552.0,0.42079639]
[1644615495567,0.03608222,42555.0,42552.0,0.42079639]
[1644615496516,0.03608222,42555.0,42552.0,0.47079639]
[1644615496712,0.03608222,42555.0,42552.0,0.41202139]
[1644615496914,0.03608222,42555.0,42553.0,0.105673]
[1644615497112,0.03608222,42555.0,42554.0,0.29413507]
[1644615497312,0.03608222,42555.0,42554.0,0.34103507]
[1644615499415,0.03608222,42555.0,42554.0,0.0469]
[1644615502866,0.03608222,42555.0,42554.0,0.1876]
[1644615503068,0.03608222,42555.0,42554.0,0.48043237]
[1644615503767,0.10953,42557.0,42554.0,0.48043237]
[1644615503768,0.10953,42557.0,42555.0,1.05]
[1644615504026,0.0005662,42567.0,42558.0,0.199456]
[1644615504221,0.30971853,42569.0,42566.0,0.38297645]
[1644615504418,0.01,42569.0,42559.0,0.36449376]
[1644615504620,0.2,42556.0,42552.0,0.05]
[1644615504818,0.05878,42561.0,42556.0,0.33362031]
[1644615505018,0.34971853,42565.0,42556.0,0.33362031]
[1644615505218,0.29971853,42564.0,42556.0,0.33362031]
[1644615505418,0.34061668,42559.0,42556.0,0.33362031]
[1644615505618,0.058776,42560.0,42556.0,0.33362031]
[1644615506619,0.30863929,42560.0,42556.0,0.33362031]
[1644615506820,0.29956628,42559.0,42556.0,0.33362031]
[1644615507759,0.54913299,42559.0,42556.0,0.33362031]
[1644615507962,0.29956628,42559.0,42556.0,0.33362031]
[1644615508162,0.54913299,42559.0,42556.0,0.33362031]
[1644615508364,0.29956628,42559.0,42556.0,0.33362031]
[1644615508761,0.54913299,42559.0,42556.0,0.33362031]
[1644615510861,0.29956628,42559.0,42556.0,0.33362031]
[1644615512813,0.29956628,42559.0,42556.0,0.39239306]
[1644615513914,0.29956628,42559.0,42556.0,0.33362031]
[1644615519007,0.29956628,42559.0,42556.0,0.39239667]
[1644615519910,0.29956628,42559.0,42556.0,0.33362031]
[1644615520210,0.29956628,42559.0,42556.0,0.33302031]
[1644615525062,0.59928481,42559.0,42556.0,0.33302031]
[1644615526712,0.24977679,42557.0,42556.0,0.33302031]
[1644615527913,0.35849653,42558.0,42556.0,0.33302031]
[1644615528215,0.29971853,42557.0,42556.0,0.33302031]
[1644615528613,0.35849653,42558.0,42556.0,0.33302031]
[1644615529212,0.29971853,42557.0,42556.0,0.33302031]
[1644615529916,0.40844962,42558.0,42556.0,0.33302031]
[1644615530114,0.058778,42558.0,42556.0,0.33302031]
[1644615530377,0.35875771,42558.0,42556.0,0.33302031]
[1644615530572,0.39382362,42557.0,42556.0,0.33302031]
[1644615531579,0.39382362,42557.0,42549.0,0.00040369]
[1644615531581,0.07588763,42553.0,42549.0,0.00040369]
[1644615531778,0.35005312,42550.0,42549.0,0.00040369]
[1644615531975,0.41765012,42551.0,42549.0,0.00040369]
[1644615532175,0.30005312,42550.0,42549.0,0.00040369]
[1644615532574,0.35884612,42550.0,42549.0,0.00040369]
[1644615532775,0.235193,42550.0,42545.0,0.34509906]
[1644615532978,0.20002769,42546.0,42545.0,0.60832799]
[1644615533377,0.20002769,42547.0,42545.0,0.60832799]
[1644615533774,0.20002769,42547.0,42545.0,0.28630792]
[1644615534212,0.20002769,42547.0,42541.0,0.29501209]
[1644615534411,0.20002769,42547.0,42544.0,0.00041122]
[1644615534811,0.20002769,42547.0,42544.0,0.31557463]
[1644615535012,0.25881769,42548.0,42544.0,0.31557463]
[1644615535211,0.25881769,42548.0,42544.0,0.60606451]
[1644615535812,0.058794,42547.0,42544.0,0.31557463]
[1644615536013,0.20002769,42546.0,42544.0,0.0587925]
[1644615536712,0.25882169,42547.0,42544.0,0.0587925]
[1644615536912,0.058794,42547.0,42544.0,0.0587925]
[1644615537114,0.20002769,42550.0,42545.0,0.27336441]
[1644615537313,0.20002769,42552.0,42545.0,0.27336441]
[1644615537513,0.20002769,42552.0,42546.0,0.10459091]
[1644615538165,0.20002769,42552.0,42551.0,0.4132718]
[1644615538561,0.20002769,42552.0,42551.0,0.3544948]
[1644615539063,0.25003461,42553.0,42550.0,0.05877661]
[1644615539262,0.28440416,42551.0,42550.0,0.05877661]
[1644615539462,0.25003461,42552.0,42550.0,0.05877661]
[1644615539763,0.19965384,42552.0,42550.0,0.05877661]
[1644615539963,0.25003461,42553.0,42550.0,0.05877661]
[1644615540169,0.19965934,42552.0,42550.0,0.05877661]
[1644615540769,0.19995625,42553.0,42550.0,0.05877661]
[1644615541269,0.19965934,42553.0,42550.0,0.11755661]
[1644615541529,0.25843834,42553.0,42550.0,0.05877661]
[1644615542225,0.19965934,42551.0,42550.0,0.05877661]
[1644615543823,0.3092608,42553.0,42550.0,0.05877661]
[1644615543824,0.30881361,42553.0,42550.0,0.05877661]
[1644615544024,0.19986156,42552.0,42550.0,0.05877661]
[1644615545662,0.05922619,42553.0,42550.0,0.05877661]
[1644615545663,0.19986156,42551.0,42550.0,0.05877661]
[1644615545864,0.3092608,42553.0,42550.0,0.05877661]
[1644615545865,0.25003461,42552.0,42550.0,0.05877661]
[1644615547161,0.35882661,42552.0,42550.0,0.05877661]
[1644615547364,0.35882661,42552.0,42538.0,0.3]
[1644615547365,0.73524797,42552.0,42538.0,0.3]
[1644615547662,0.1999672,42545.0,42542.0,0.00044731]
[1644615547863,0.1999672,42544.0,42542.0,0.00044731]
[1644615548063,0.36547453,42543.0,42542.0,0.00044731]
[1644615548467,0.36547453,42543.0,42538.0,0.29250615]
[1644615548665,0.1999672,42545.0,42542.0,0.05880119]
[1644615548865,0.1999672,42544.0,42542.0,0.05880119]
[1644615549111,0.2587642,42544.0,42542.0,0.05880119]
[1644615549315,0.058797,42544.0,42542.0,0.05880119]
[1644615550116,0.2587642,42544.0,42542.0,0.05880119]
[1644615550416,0.058797,42544.0,42542.0,0.05880119]
[1644615552416,0.1999672,42543.0,42542.0,0.05880119]
[1644615552616,0.058797,42544.0,42542.0,0.05880119]
[1644615552860,0.1999672,42543.0,42542.0,0.05880119]
[1644615553061,0.058797,42544.0,42542.0,0.05880119]
[1644615553262,0.2587642,42544.0,42542.0,0.05880119]
[1644615553664,0.058797,42544.0,42542.0,0.05880119]
[1644615555562,0.1999672,42543.0,42542.0,0.05880119]
[1644615556914,0.2587642,42544.0,42542.0,0.05880119]
[1644615557331,0.058797,42544.0,42542.0,0.05880119]
[1644615560577,0.058797,42544.0,42542.0,0.11759119]
[1644615560775,0.46040316,42549.0,42542.0,0.35874837]
[1644615560974,0.20003771,42548.0,42542.0,0.35874837]
[1644615561175,0.20003771,42546.0,42542.0,0.35874837]
[1644615561976,0.20003771,42546.0,42542.0,0.35919563]
[1644615562176,0.58747447,42547.0,42542.0,0.35919563]
[1644615562376,0.38743676,42547.0,42542.0,0.35919563]
[1644615562778,0.20003771,42545.0,42542.0,0.05924845]
[1644615563077,0.058793,42545.0,42542.0,0.05924845]
[1644615563277,0.25883071,42545.0,42542.0,0.05924845]
[1644615563679,0.058793,42545.0,42542.0,0.05924845]
[1644615563881,0.25883071,42545.0,42542.0,0.05924845]
[1644615564111,0.058793,42545.0,42542.0,0.11759219]
[1644615564309,0.058793,42545.0,42542.0,0.05880119]
[1644615564910,0.058793,42545.0,42540.0,0.53378121]
[1644615565712,0.058793,42545.0,42542.0,0.058791]
[1644615566113,0.058793,42545.0,42542.0,0.11759219]
[1644615566812,0.058793,42545.0,42542.0,0.05880119]
[1644615568768,0.25883071,42545.0,42542.0,0.05880119]
[1644615569169,0.25883071,42545.0,42542.0,0.11759219]
[1644615569170,0.058793,42545.0,42542.0,0.11759219]
[1644615569369,0.058793,42545.0,42542.0,0.05880119]
[1644615569571,0.00044721,42546.0,42542.0,0.30869306]
[1644615569774,0.00044721,42546.0,42544.0,0.29691832]
[1644615569970,0.00044721,42546.0,42545.0,0.54432133]
[1644615570272,0.20003771,42553.0,42548.0,0.058771]
[1644615570470,0.20003771,42553.0,42548.0,0.35191579]
[1644615570670,0.20182626,42554.0,42548.0,0.34314479]
[1644615570871,0.00178855,42554.0,42548.0,0.05]
[1644615571269,0.20003771,42555.0,42549.0,0.058772]
[1644615571525,0.00044719,42553.0,42549.0,0.058772]
[1644615571718,0.05922219,42553.0,42549.0,0.058772]
[1644615572317,0.05922219,42553.0,42550.0,0.117549]
[1644615572518,0.058775,42553.0,42551.0,0.05877503]
[1644615572919,0.05922219,42553.0,42551.0,0.05877503]
[1644615573719,0.20003771,42555.0,42552.0,0.28840339]
[1644615573921,0.00044718,42554.0,42553.0,0.058776]
[1644615574521,0.00044718,42554.0,42553.0,0.05861559]
[1644615574923,0.20003771,42555.0,42553.0,0.05861559]
[1644615575260,0.25876089,42556.0,42552.0,0.17632305]
[1644615575659,0.25876089,42556.0,42554.0,0.35210789]
[1644615576259,0.25831371,42556.0,42554.0,0.35210789]
[1644615576662,0.25831371,42556.0,42554.0,0.66878259]
[1644615577260,0.058276,42556.0,42554.0,0.66878259]
[1644615577962,0.058276,42556.0,42554.0,0.35210789]
[1644615579017,0.058276,42556.0,42554.0,0.60282877]
[1644615581812,0.058276,42556.0,42554.0,0.70522536]
[1644615582012,0.00044717,42557.0,42555.0,0.29712635]
[1644615582214,0.5565,42560.0,42555.0,0.29712635]
[1644615582215,0.20003771,42560.0,42555.0,0.29712635]
[1644615582411,0.00044717,42557.0,42556.0,0.058769]
[1644615582614,0.20003771,42560.0,42556.0,0.058769]
[1644615582615,0.18216454,42561.0,42557.0,1.0]
[1644615582869,0.00178842,42564.0,42557.0,0.15401687]
[1644615583067,0.00178842,42564.0,42558.0,0.14739695]
[1644615583266,0.00178842,42564.0,42559.0,0.14721236]
[1644615583468,0.26004714,42569.0,42559.0,0.14721236]
[1644615583469,0.25004714,42568.0,42561.0,0.15214228]
[1644615583668,0.25004714,42567.0,42563.0,0.3173313]
[1644615583869,0.18813334,42562.0,42554.0,0.09945278]
[1644615584068,0.18813334,42562.0,42557.0,0.09102371]
[1644615584270,0.18813334,42562.0,42557.0,0.25854871]
[1644615584470,0.18813334,42562.0,42558.0,0.09438803]
[1644615584667,0.18813334,42562.0,42557.0,0.167525]
[1644615584668,0.18813334,42562.0,42559.0,0.058763]
[1644615584868,0.18813334,42562.0,42561.0,0.30098352]
[1644615585267,0.18813334,42562.0,42559.0,0.51577206]
[1644615585467,0.18813334,42562.0,42560.0,0.05876363]
[1644615585868,0.18813334,42562.0,42561.0,0.10503427]
[1644615586067,0.18813334,42562.0,42561.0,0.15482064]
[1644615586530,0.18813334,42562.0,42560.0,0.05876363]
[1644615587524,0.44669825,42562.0,42560.0,0.05876363]
[1644615592669,0.44669825,42562.0,42547.0,0.09519232]
[1644615592670,0.19985392,42561.0,42547.0,0.09519232]
[1644615593068,0.50547825,42562.0,42556.0,0.11754777]
[1644615593069,0.19985392,42560.0,42556.0,0.11754777]
[1644615593270,0.00044991,42559.0,42556.0,0.11754777]
[1644615594215,0.51263188,42561.0,42556.0,0.11754777]
[1644615594415,0.00044992,42560.0,42556.0,0.11754777]
[1644615594618,0.46918607,42560.0,42548.0,0.1159]
[1644615594818,0.46918607,42560.0,42547.0,0.14997671]
[1644615594819,0.34899338,42552.0,42547.0,0.14997671]
[1644615595022,0.117567,42553.0,42547.0,0.05045006]
[1644615595217,0.19985392,42557.0,42547.0,0.05045006]
[1644615595218,0.19985392,42557.0,42549.0,0.22270391]
[1644615595418,0.29530596,42554.0,42549.0,0.11756766]
[1644615596017,0.59865991,42554.0,42549.0,0.11756766]
[1644615598068,0.30335395,42554.0,42549.0,0.17634466]
[1644615598266,0.30335395,42554.0,42549.0,0.11756766]
[1644615598867,0.30335395,42554.0,42549.0,0.2129495]
[1644615599167,0.30335395,42554.0,42550.0,0.058776]
[1644615599366,0.30335395,42554.0,42550.0,0.11755271]
[1644615599566,0.30335395,42554.0,42550.0,0.22184689]
[1644615599866,0.25863392,42556.0,42550.0,0.22184689]
[1644615600467,0.05878,42556.0,42552.0,0.05877606]
[1644615601270,0.25863392,42556.0,42552.0,0.05877606]
[1644615601534,0.19985392,42555.0,42552.0,0.05877606]
[1644615601721,0.249875,42561.0,42554.0,0.05]
[1644615601926,0.13939695,42564.0,42560.0,0.05]
[1644615601927,0.0005662,42564.0,42560.0,0.05]
[1644615602123,0.01,42569.0,42561.0,0.28910228]
[1644615602321,0.01,42569.0,42561.0,0.96520411]
[1644615602522,0.00179916,42570.0,42569.0,1.05]
[1644615602736,0.1168,42585.0,42570.0,0.10188673]
[1644615602737,0.0001,42578.0,42570.0,0.10188673]
[1644615602923,0.0001,42578.0,42571.0,0.0469]
[1644615603120,0.0001,42582.0,42572.0,0.1002968]
[1644615603321,0.0001,42582.0,42576.0,0.37247167]
[1644615603520,0.0001,42582.0,42576.0,0.41937167]
[1644615604320,0.0001,42584.0,42576.0,0.7156579]
[1644615604521,0.0001,42585.0,42576.0,0.7156579]
[1644615605368,0.00029668,42579.0,42576.0,0.7156579]
[1644615606168,0.0001,42585.0,42576.0,0.7156579]
[1644615606368,0.00045032,42579.0,42576.0,0.41937167]
[1644615606568,0.00045032,42579.0,42576.0,0.63764167]
[1644615606768,0.00045032,42579.0,42576.0,1.18251007]
[1644615606968,0.00045032,42579.0,42578.0,0.1907]
[1644615607169,0.00180099,42585.0,42580.0,0.1407]
[1644615607369,0.001,42588.0,42583.0,0.66030926]
[1644615607570,0.001,42588.0,42584.0,0.1876]
[1644615607770,0.001,42588.0,42584.0,0.2376]
[1644615608373,0.001,42588.0,42585.0,0.05871627]
[1644615608570,0.001,42588.0,42585.0,0.19941627]
[1644615608771,0.01,42589.0,42587.0,0.1907]
[1644615609046,0.01,42589.0,42588.0,0.39888706]
[1644615609437,0.01,42589.0,42588.0,0.61630706]
[1644615609637,0.005,42589.0,42588.0,0.61630706]
[1644615610238,0.005,42589.0,42588.0,0.75700706]
[1644615611039,0.001,42593.0,42588.0,0.81639206]
[1644615611241,0.001,42593.0,42591.0,0.15870192]
[1644615611442,0.001,42593.0,42592.0,0.35734369]
[1644615611639,0.00181237,42597.0,42593.0,0.117404]
[1644615611841,0.00181237,42597.0,42594.0,0.0969]
[1644615612041,0.00181237,42597.0,42595.0,0.50217562]
[1644615612240,0.01,42609.0,42601.0,0.05869219]
[1644615612441,0.01,42609.0,42602.0,0.0469]
[1644615612639,0.00119491,42604.0,42602.0,0.0469]
[1644615612877,0.00119491,42604.0,42603.0,0.84096952]
[1644615613178,0.0101,42609.0,42603.0,1.05524752]
[1644615613381,0.01,42609.0,42603.0,1.15524752]
[1644615613576,0.01,42609.0,42604.0,0.28430968]
[1644615613776,0.01,42609.0,42606.0,0.10049499]
[1644615613978,0.01,42609.0,42607.0,0.105591]
[1644615614178,0.01,42609.0,42608.0,0.09320621]
[1644615614379,0.01,42609.0,42607.0,0.22297235]
[1644615614578,0.01,42609.0,42607.0,0.16428135]
[1644615614778,0.01,42609.0,42607.0,0.0469]
[1644615615578,0.25114943,42608.0,42607.0,0.0469]
[1644615615777,0.0001,42608.0,42607.0,0.0469]
[1644615616178,0.01,42609.0,42607.0,0.0469]
[1644615616820,0.08929641,42609.0,42607.0,0.0469]
[1644615617021,0.0101,42609.0,42607.0,0.0469]
[1644615617619,0.0101,42609.0,42607.0,0.00676626]
[1644615618420,0.01,42609.0,42607.0,0.00676626]
[1644615619022,0.01,42609.0,42607.0,0.06546964]
[1644615619825,0.01,42609.0,42608.0,0.00111093]
[1644615620473,0.01,42609.0,42608.0,0.00054579]
[1644615622875,0.01,42609.0,42608.0,0.09625686]
[1644615623075,0.01,42609.0,42608.0,0.10608598]
[1644615623277,0.01,42609.0,42608.0,0.20298598]
[1644615623678,0.01,42609.0,42608.0,0.09744579]
[1644615623877,0.01,42609.0,42608.0,0.57545225]
[1644615624718,0.01,42609.0,42608.0,0.57490646]
[1644615625119,0.01,42609.0,42608.0,0.20456378]
[1644615625921,0.01,42609.0,42608.0,0.25456378]
[1644615626124,0.01,42609.0,42608.0,0.56951942]
[1644615626325,0.00045597,42611.0,42609.0,0.0101257]
[1644615626522,0.00045597,42611.0,42610.0,0.15085153]
[1644615626721,0.001,42613.0,42610.0,0.20085153]
[1644615626924,0.001,42613.0,42611.0,0.37716515]
[1644615627123,0.00045596,42612.0,42611.0,0.48010003]
[1644615627323,0.00045596,42612.0,42611.0,0.20852088]
[1644615627525,0.00045596,42612.0,42611.0,0.25852088]
[1644615627997,0.001,42613.0,42611.0,0.31720562]
[1644615628799,0.001,42613.0,42611.0,0.37588962]
[1644615630300,0.001,42613.0,42612.0,0.09279486]
[1644615630497,0.001,42613.0,42612.0,0.13969486]
[1644615630901,0.001,42613.0,42612.0,0.45394118]